[Event "ETCC Women 2013"]
[Site "Warsaw"]
[Date "2013.11.12"]
[Round "5"]
[White "Purgar, Ivona"]
[Black "Dierckens, Sarah"]
[Result "0-1"]
[ECO "C13"]
[WhiteElo "2136"]
[BlackElo "1872"]
[PlyCount "138"]
[EventDate "2013.??.??"]
[EventCountry "POL"]
[WhiteTeam "Croatia"]
[BlackTeam "Belgium"]
[WhiteTeamCountry "CRO"]
[BlackTeamCountry "BEL"]
[TimeControl "40/5400+30:1800+30"]

1. e4 {[%emt 0:00:00]} e6 {[%emt 0:00:00]} 2. d4 {[%emt 0:00:00]} d5 {[%emt 0:
00:00]} 3. Nc3 {[%emt 0:00:07]} Nf6 {[%emt 0:00:00]} 4. Bg5 {[%emt 0:00:36]}
Be7 {[%emt 0:00:10]} 5. e5 {[%emt 0:00:24]} Nfd7 {[%emt 0:00:06]} 6. h4 {[%emt
0:01:06]} Bxg5 {[%emt 0:03:12]} 7. hxg5 {[%emt 0:00:22]} Qxg5 {[%emt 0:00:05]}
8. Qd3 {[%emt 0:01:09]} h6 {[%emt 0:02:23]} 9. Nh3 {[%emt 0:01:29]} Qd8 {[%emt
0:01:14]} 10. O-O-O {[%emt 0:03:11]} a6 {[%emt 0:00:50]} 11. Qg3 {[%emt 0:02:
35]} Kf8 {[%emt 0:07:32]} 12. Nf4 {[%emt 0:11:07]} c5 {[%emt 0:03:09]} 13. dxc5
{[%emt 0:06:45]} Nc6 {[%emt 0:03:19]} 14. Nd3 {[%emt 0:07:39]} Qa5 {[%emt 0:01:
17]} 15. Kb1 {[%emt 0:06:53]} Nxc5 {[%emt 0:03:12]} 16. Nxc5 {[%emt 0:05:39]}
Qxc5 {[%emt 0:00:29]} 17. f4 {[%emt 0:05:00]} b5 {[%emt 0:08:37]} 18. Qh4 {
[%emt 0:08:22]} Bb7 {[%emt 0:02:20]} 19. Bd3 {[%emt 0:04:01]} Nb4 {[%emt 0:03:
57]} 20. f5 {[%emt 0:12:32]} Nxd3 {[%emt 0:10:08]} 21. Rxd3 {[%emt 0:01:22]}
exf5 {[%emt 0:03:29]} 22. Qf4 {[%emt 0:06:18]} Rc8 {[%emt 0:06:32]} 23. Rd2 {
[%emt 0:02:22]} d4 {[%emt 0:09:09]} 24. Rxd4 {[%emt 0:04:12]} Be4 {[%emt 0:14:
28]} 25. Qd2 {[%emt 0:01:37]} Qxe5 {[%emt 0:05:34]} 26. Re1 {[%emt 0:00:50]} g5
{[%emt 0:02:48]} 27. Nxe4 {[%emt 0:01:03]} fxe4 {[%emt 0:00:21]} 28. Rdxe4 {
[%emt 0:00:25]} Qf6 {[%emt 0:01:28]} 29. Qe2 {[%emt 0:02:00]} Kg7 {[%emt 0:00:
58]} 30. Rf1 {[%emt 0:01:00]} Qg6 {[%emt 0:01:14]} 31. Re7 {[%emt 0:00:43]}
Rhf8 {[%emt 0:00:56]} 32. a3 {[%emt 0:02:59]} Qc6 {[%emt 0:02:43]} 33. Re1 {
[%emt 0:01:07]} Kg8 {[%emt 0:00:52]} 34. Qf2 {[%emt 0:00:23]} Rce8 {[%emt 0:01:
45]} 35. g4 {[%emt 0:00:46]} Rxe7 {[%emt 0:00:41]} 36. Rxe7 {[%emt 0:00:04]}
Qd6 {[%emt 0:01:13]} 37. Re1 {[%emt 0:01:18]} Rd8 {[%emt 0:00:55]} 38. Rf1 {
[%emt 0:00:21]} Qe6 {[%emt 0:00:26]} 39. Qg2 {[%emt 0:00:43]} Rd4 {[%emt 0:01:
16]} 40. Rg1 {[%emt 0:00:00]} Re4 {[%emt 0:00:00]} 41. Qg3 {[%emt 0:05:20]} Re3
{[%emt 0:04:51]} 42. Qf2 {[%emt 0:08:26]} Re2 {[%emt 0:02:30]} 43. Qg3 {[%emt
0:05:57]} Qe4 {[%emt 0:04:22]} 44. Qc3 {[%emt 0:01:57]} Qe3 {[%emt 0:03:42]}
45. Qxe3 {[%emt 0:02:09]} Rxe3 {[%emt 0:00:02]} 46. b3 {[%emt 0:00:26]} Kg7 {
[%emt 0:00:56]} 47. Kb2 {[%emt 0:01:19]} Kg6 {[%emt 0:01:17]} 48. Rd1 {[%emt 0:
03:59]} Re6 {[%emt 0:00:58]} 49. c4 {[%emt 0:01:03]} bxc4 {[%emt 0:02:27]} 50.
bxc4 {[%emt 0:00:04]} f5 {[%emt 0:06:49]} 51. gxf5+ {[%emt 0:00:55]} Kxf5 {
[%emt 0:00:01]} 52. Kc3 {[%emt 0:00:12]} g4 {[%emt 0:02:13]} 53. Rf1+ {[%emt 0:
01:35]} Ke4 {[%emt 0:01:39]} 54. Re1+ {[%emt 0:00:45]} Kf5 {[%emt 0:00:12]} 55.
Rf1+ {[%emt 0:00:06]} Ke5 {[%emt 0:01:22]} 56. Re1+ {[%emt 0:02:40]} Kd6 {
[%emt 0:00:36]} 57. Rg1 {[%emt 0:00:32]} Rg6 {[%emt 0:00:59]} 58. Kd4 {[%emt 0:
01:41]} g3 {[%emt 0:01:35]} 59. Rg2 {[%emt 0:00:42]} Rg4+ {[%emt 0:01:07]} 60.
Ke3 {[%emt 0:00:28]} Rxc4 {[%emt 0:01:02]} 61. Rd2+ {[%emt 0:00:48]} Ke5 {
[%emt 0:00:43]} 62. Rd3 {[%emt 0:00:38]} Rg4 {[%emt 0:01:18]} 63. Rd1 {[%emt 0:
00:26]} h5 {[%emt 0:00:42]} 64. Kf3 {[%emt 0:00:25]} g2 {[%emt 0:00:32]} 65.
Rg1 {[%emt 0:00:15]} Kd4 {[%emt 0:00:50]} 66. Kf2 {[%emt 0:00:54]} Kc3 {[%emt
0:00:31]} 67. Rc1+ {[%emt 0:00:37]} Kb2 {[%emt 0:00:27]} 68. Rg1 {[%emt 0:00:
23]} Kxa3 {[%emt 0:00:11]} 69. Ra1+ {[%emt 0:00:11]} Kb2 0-1

[Event "ETCC Women 2013"]
[Site "Warsaw"]
[Date "2013.11.12"]
[Round "5"]
[White "Rautanen, Sari"]
[Black "Grigoryan, Meri"]
[Result "1/2-1/2"]
[ECO "A06"]
[WhiteElo "1956"]
[BlackElo "2039"]
[PlyCount "81"]
[EventDate "2013.??.??"]
[EventCountry "POL"]
[WhiteTeam "Finland"]
[BlackTeam "England"]
[WhiteTeamCountry "FIN"]
[BlackTeamCountry "ENG"]
[TimeControl "40/5400+30:1800+30"]

1. Nf3 d5 2. g3 e6 3. Bg2 Bd6 4. O-O f5 5. d3 Nf6 6. Nbd2 Nbd7 7. e4 O-O 8.
exf5 exf5 9. Nd4 Ne5 10. N2f3 Ng6 11. Ng5 Re8 12. Re1 c6 13. c3 h6 14. Ngf3 f4
15. Bd2 Bg4 16. Qb3 Qc7 17. c4 h5 18. cxd5 Nxd5 19. Ng5 Nge7 20. Nb5 Qd7 21.
Nxd6 Qxd6 22. Bxf4 Qb4 23. Qxb4 Nxb4 24. h3 Bf5 25. Be4 Nxd3 26. Bxd3 Bxd3 27.
Rad1 Bf5 28. Re5 Kf8 29. Rde1 Rad8 30. Be3 b6 31. Kg2 Rd5 32. Bf4 Rxe5 33. Bxe5
Rd8 34. h4 Nd5 35. a3 Rd7 36. Rc1 c5 37. Re1 Ne7 38. Bc3 Nc6 39. Nf3 Nd4 40.
Re5 g6 41. Ng5 1/2-1/2

[Event "ETCC Women 2013"]
[Site "Warsaw"]
[Date "2013.11.12"]
[Round "5"]
[White "Revo, Tatiana"]
[Black "Kopinits, Anna-Christina"]
[Result "1-0"]
[ECO "B30"]
[WhiteElo "2075"]
[BlackElo "2263"]
[PlyCount "59"]
[EventDate "2013.??.??"]
[EventCountry "POL"]
[WhiteTeam "Belarus"]
[BlackTeam "Austria"]
[WhiteTeamCountry "BLR"]
[BlackTeamCountry "AUT"]
[TimeControl "40/5400+30:1800+30"]

1. e4 {[%emt 0:00:00]} c5 {[%emt 0:00:00]} 2. Nf3 {[%emt 0:00:00]} Nc6 {[%emt
0:00:00]} 3. Bb5 {[%emt 0:00:00]} e5 {[%emt 0:05:55]} 4. O-O {[%emt 0:03:04]}
Bd6 {[%emt 0:18:31]} 5. c3 {[%emt 0:07:59]} Qc7 {[%emt 0:16:12]} 6. h3 {[%emt
0:25:52]} Nge7 {[%emt 0:05:41]} 7. d4 {[%emt 0:01:53]} cxd4 {[%emt 0:02:13]} 8.
cxd4 {[%emt 0:00:28]} O-O {[%emt 0:05:09]} 9. Nc3 {[%emt 0:11:39]} exd4 {[%emt
0:03:44]} 10. Nxd4 {[%emt 0:01:29]} Nxd4 {[%emt 0:02:55]} 11. Qxd4 {[%emt 0:00:
09]} Be5 {[%emt 0:01:57]} 12. Qd3 {[%emt 0:04:17]} a6 {[%emt 0:03:06]} 13. Bc4
{[%emt 0:02:32]} b5 {[%emt 0:01:03]} 14. Bd5 {[%emt 0:06:48]} Bb7 {[%emt 0:02:
05]} 15. Rd1 {[%emt 0:11:45]} Nxd5 {[%emt 0:06:03]} 16. Nxd5 {[%emt 0:00:15]}
Bxd5 {[%emt 0:00:04]} 17. Qxd5 {[%emt 0:00:28]} Rfe8 {[%emt 0:02:10]} 18. Rb1 {
[%emt 0:03:49]} Qc2 {[%emt 0:04:25]} 19. Be3 {[%emt 0:01:59]} Bxb2 {[%emt 0:02:
03]} 20. Qxd7 {[%emt 0:00:51]} Bf6 {[%emt 0:00:40]} 21. Rbc1 {[%emt 0:02:43]}
Qxa2 {[%emt 0:00:51]} 22. Rd5 {[%emt 0:00:43]} h6 {[%emt 0:02:25]} 23. Rc7 {
[%emt 0:00:41]} Qb1+ {[%emt 0:05:17]} 24. Kh2 {[%emt 0:00:31]} Qxe4 {[%emt 0:
00:57]} 25. Qxf7+ {[%emt 0:00:12]} Kh8 {[%emt 0:00:12]} 26. Bxh6 {[%emt 0:01:
09]} Be5+ {[%emt 0:02:38]} 27. f4 {[%emt 0:00:26]} Qxd5 {[%emt 0:05:00]} 28.
Bxg7+ {[%emt 0:00:22]} Kh7 {[%emt 0:00:05]} 29. Qh5+ {[%emt 0:00:07]} Kg8 {
[%emt 0:00:05]} 30. Qh8# {[%emt 0:00:07]} 1-0

[Event "ETCC Women 2013"]
[Site "Warsaw"]
[Date "2013.11.12"]
[Round "5"]
[White "Rudolf, Anna"]
[Black "Kaplan, Ebru"]
[Result "1-0"]
[ECO "C84"]
[WhiteElo "2281"]
[BlackElo "1882"]
[PlyCount "57"]
[EventDate "2013.??.??"]
[EventCountry "POL"]
[WhiteTeam "Hungary"]
[BlackTeam "Turkey"]
[WhiteTeamCountry "HUN"]
[BlackTeamCountry "TUR"]
[TimeControl "40/5400+30:1800+30"]

1. e4 {[%emt 0:00:00]} e5 {[%emt 0:00:00]} 2. Nf3 {[%emt 0:00:00]} Nc6 {[%emt
0:00:00]} 3. Bb5 {[%emt 0:00:06]} a6 {[%emt 0:00:15]} 4. Ba4 {[%emt 0:00:09]}
Nf6 {[%emt 0:00:19]} 5. O-O {[%emt 0:00:18]} Be7 {[%emt 0:00:43]} 6. d3 {[%emt
0:00:16]} b5 {[%emt 0:01:23]} 7. Bb3 {[%emt 0:00:09]} d6 {[%emt 0:00:06]} 8. a4
{[%emt 0:00:39]} Bd7 {[%emt 0:09:44]} 9. Bd2 {[%emt 0:14:40]} O-O {[%emt 0:02:
07]} 10. Nc3 {[%emt 0:02:32]} Rb8 {[%emt 0:12:05]} 11. axb5 {[%emt 0:02:04]}
axb5 {[%emt 0:00:07]} 12. Nd5 {[%emt 0:01:43]} Nd4 {[%emt 0:07:00]} 13. Nxd4 {
[%emt 0:01:48]} exd4 {[%emt 0:00:20]} 14. Nxe7+ {[%emt 0:13:36]} Qxe7 {[%emt 0:
00:07]} 15. Ra7 {[%emt 0:00:34]} Rfc8 {[%emt 0:08:56]} 16. Qf3 {[%emt 0:06:41]}
Ng4 {[%emt 0:13:43]} 17. Qg3 {[%emt 0:12:07]} Be6 {[%emt 0:12:41]} 18. Bd5 {
[%emt 0:12:51]} Ne5 {[%emt 0:14:50]} 19. Bxe6 {[%emt 0:14:26]} Qxe6 {[%emt 0:
02:03]} 20. f4 {[%emt 0:00:20]} Nd7 {[%emt 0:00:06]} 21. Qf2 {[%emt 0:02:41]}
c5 {[%emt 0:01:41]} 22. f5 {[%emt 0:00:24]} Qe8 {[%emt 0:00:07]} 23. Qg3 {
[%emt 0:01:40]} Ne5 {[%emt 0:02:55]} 24. Bh6 {[%emt 0:01:03]} g6 {[%emt 0:01:
01]} 25. Qg5 {[%emt 0:06:22]} Qd8 {[%emt 0:01:40]} 26. Re7 {[%emt 0:00:24]} Ng4
{[%emt 0:00:53]} 27. fxg6 {[%emt 0:00:34]} Nxh6 {[%emt 0:04:53]} 28. Qxh6 {
[%emt 0:00:24]} Qxe7 {[%emt 0:01:12]} 29. Qxh7+ {[%emt 0:00:10]} 1-0

[Event "ETCC Women 2013"]
[Site "Warsaw"]
[Date "2013.11.12"]
[Round "5"]
[White "Saric, Kristina"]
[Black "Barbier, Wiebke"]
[Result "1-0"]
[ECO "C41"]
[WhiteElo "2250"]
[BlackElo "1945"]
[PlyCount "123"]
[EventDate "2013.??.??"]
[EventCountry "POL"]
[WhiteTeam "Croatia"]
[BlackTeam "Belgium"]
[WhiteTeamCountry "CRO"]
[BlackTeamCountry "BEL"]
[TimeControl "40/5400+30:1800+30"]

1. e4 {[%emt 0:00:00]} d6 {[%emt 0:00:00]} 2. d4 {[%emt 0:00:00]} Nf6 {[%emt 0:
00:00]} 3. Nc3 {[%emt 0:00:00]} e5 {[%emt 0:00:00]} 4. Nf3 {[%emt 0:00:00]}
Nbd7 {[%emt 0:00:00]} 5. Bc4 {[%emt 0:00:04]} Be7 {[%emt 0:00:00]} 6. O-O {
[%emt 0:00:11]} O-O {[%emt 0:00:00]} 7. Re1 {[%emt 0:00:07]} c6 {[%emt 0:00:01]
} 8. a4 {[%emt 0:00:06]} a5 {[%emt 0:00:04]} 9. h3 {[%emt 0:00:19]} Nb6 {[%emt
0:03:13]} 10. Bf1 {[%emt 0:00:13]} Qc7 {[%emt 0:02:53]} 11. Be3 {[%emt 0:06:01]
} Re8 {[%emt 0:06:08]} 12. dxe5 {[%emt 0:14:05]} dxe5 {[%emt 0:01:16]} 13. Nxe5
{[%emt 0:05:24]} Nxa4 {[%emt 0:01:29]} 14. Rxa4 {[%emt 0:07:24]} Qxe5 {[%emt 0:
01:50]} 15. f4 {[%emt 0:00:50]} Qc7 {[%emt 0:01:28]} 16. e5 {[%emt 0:11:51]}
Nd7 {[%emt 0:06:46]} 17. Kh1 {[%emt 0:06:08]} b5 {[%emt 0:03:17]} 18. Rd4 {
[%emt 0:01:51]} Nc5 {[%emt 0:05:30]} 19. Rd6 {[%emt 0:08:39]} b4 {[%emt 0:22:
33]} 20. Bxc5 {[%emt 0:09:10]} bxc3 {[%emt 0:00:21]} 21. bxc3 {[%emt 0:01:21]}
Be6 {[%emt 0:00:56]} 22. Bd3 {[%emt 0:01:04]} Bxd6 {[%emt 0:03:25]} 23. Bxd6 {
[%emt 0:00:09]} Qd7 {[%emt 0:00:35]} 24. Qf3 {[%emt 0:05:22]} Bd5 {[%emt 0:03:
06]} 25. Qg3 {[%emt 0:01:47]} Be6 {[%emt 0:02:56]} 26. Rf1 {[%emt 0:05:54]} Bf5
{[%emt 0:01:13]} 27. Qg5 {[%emt 0:00:55]} Bxd3 {[%emt 0:01:54]} 28. cxd3 {
[%emt 0:00:02]} h6 {[%emt 0:02:47]} 29. Qg3 {[%emt 0:02:15]} Qf5 {[%emt 0:02:
55]} 30. Qf3 {[%emt 0:00:35]} h5 {[%emt 0:00:31]} 31. Ra1 {[%emt 0:00:43]} a4 {
[%emt 0:01:04]} 32. Ra3 {[%emt 0:04:31]} Ra6 {[%emt 0:01:30]} 33. c4 {[%emt 0:
02:25]} Rea8 {[%emt 0:03:14]} 34. Qe3 {[%emt 0:00:45]} R8a7 {[%emt 0:02:27]}
35. d4 {[%emt 0:03:35]} Rb7 {[%emt 0:01:06]} 36. d5 {[%emt 0:00:33]} cxd5 {
[%emt 0:00:51]} 37. cxd5 {[%emt 0:00:05]} Rb3 {[%emt 0:01:13]} 38. Qd2 {[%emt
0:02:04]} Qe4 {[%emt 0:02:13]} 39. Bc5 {[%emt 0:02:03]} Rb7 {[%emt 0:06:16]}
40. d6 {[%emt 0:00:00]} Qc6 {[%emt 0:00:00]} 41. Rc3 {[%emt 0:04:26]} Ra8 {
[%emt 0:03:24]} 42. Ba3 {[%emt 0:04:59]} Qd7 {[%emt 0:01:30]} 43. Qc2 {[%emt 0:
00:56]} Qb5 {[%emt 0:09:06]} 44. Kh2 {[%emt 0:06:03]} Rab8 {[%emt 0:06:15]} 45.
Qe4 {[%emt 0:02:51]} Qa5 {[%emt 0:02:56]} 46. Rc5 {[%emt 0:01:17]} Qa8 {[%emt
0:05:39]} 47. e6 {[%emt 0:03:10]} g6 {[%emt 0:07:44]} 48. d7 {[%emt 0:02:08]}
f5 {[%emt 0:07:11]} 49. Qd5 {[%emt 0:01:32]} Ra7 {[%emt 0:01:35]} 50. Qxa8 {
[%emt 0:00:53]} Raxa8 {[%emt 0:00:03]} 51. e7 {[%emt 0:00:10]} Kf7 {[%emt 0:00:
26]} 52. Rd5 {[%emt 0:00:15]} Rd8 {[%emt 0:00:58]} 53. exd8=Q {[%emt 0:00:20]}
Rxd8 {[%emt 0:00:30]} 54. Kg3 {[%emt 0:00:30]} Ke6 {[%emt 0:00:00]} 55. Rd6+ {
[%emt 0:00:00]} Kf7 {[%emt 0:00:07]} 56. Kh4 {[%emt 0:00:15]} Kg7 {[%emt 0:00:
09]} 57. Kg5 {[%emt 0:00:14]} Kf7 {[%emt 0:00:05]} 58. Rf6+ {[%emt 0:00:16]}
Kg7 {[%emt 0:00:05]} 59. Rxg6+ {[%emt 0:00:08]} Kf7 {[%emt 0:00:13]} 60. Rf6+ {
[%emt 0:00:13]} Kg7 {[%emt 0:00:04]} 61. Rd6 {[%emt 0:00:40]} Kf7 {[%emt 0:00:
13]} 62. Kxf5 {[%emt 0:00:10]} 1-0

[Event "ETCC Women 2013"]
[Site "Warsaw"]
[Date "2013.11.12"]
[Round "5"]
[White "Schnegg, Anna-Lena"]
[Black "Nevioselaya, Maria"]
[Result "1-0"]
[ECO "C95"]
[WhiteElo "2076"]
[BlackElo "2074"]
[PlyCount "65"]
[EventDate "2013.??.??"]
[EventCountry "POL"]
[WhiteTeam "Austria"]
[BlackTeam "Belarus"]
[WhiteTeamCountry "AUT"]
[BlackTeamCountry "BLR"]
[TimeControl "40/5400+30:1800+30"]

1. e4 {[%emt 0:00:00]} e5 {[%emt 0:00:00]} 2. Nf3 {[%emt 0:00:00]} Nc6 {[%emt
0:00:00]} 3. Bb5 {[%emt 0:00:00]} a6 {[%emt 0:00:00]} 4. Ba4 {[%emt 0:00:04]}
Nf6 {[%emt 0:00:00]} 5. O-O {[%emt 0:00:13]} Be7 {[%emt 0:00:00]} 6. Re1 {
[%emt 0:00:14]} b5 {[%emt 0:00:00]} 7. Bb3 {[%emt 0:00:12]} d6 {[%emt 0:00:00]}
8. c3 {[%emt 0:00:14]} O-O {[%emt 0:00:01]} 9. h3 {[%emt 0:00:09]} Nb8 {[%emt
0:00:05]} 10. d4 {[%emt 0:00:26]} Nbd7 {[%emt 0:00:05]} 11. Nbd2 {[%emt 0:00:
23]} Bb7 {[%emt 0:00:06]} 12. Bc2 {[%emt 0:00:25]} Re8 {[%emt 0:00:05]} 13. a4
{[%emt 0:00:39]} c6 {[%emt 0:01:25]} 14. b4 {[%emt 0:07:55]} Bf8 {[%emt 0:02:
58]} 15. Bd3 {[%emt 0:04:33]} g6 {[%emt 0:04:16]} 16. axb5 {[%emt 0:08:15]}
axb5 {[%emt 0:01:38]} 17. Rxa8 {[%emt 0:00:50]} Qxa8 {[%emt 0:05:55]} 18. Nb3 {
[%emt 0:01:21]} d5 {[%emt 0:36:10]} 19. dxe5 {[%emt 0:11:32]} Nxe4 {[%emt 0:13:
01]} 20. Bxe4 {[%emt 0:15:18]} dxe4 {[%emt 0:00:04]} 21. Ng5 {[%emt 0:07:59]}
Nxe5 {[%emt 0:04:24]} 22. Nxe4 {[%emt 0:03:10]} Bg7 {[%emt 0:02:11]} 23. Nbc5 {
[%emt 0:02:52]} Rd8 {[%emt 0:07:14]} 24. Qe2 {[%emt 0:04:05]} Bc8 {[%emt 0:00:
49]} 25. Bg5 {[%emt 0:02:11]} Re8 {[%emt 0:01:14]} 26. Kh1 {[%emt 0:07:13]} Rf8
{[%emt 0:13:37]} 27. Be7 {[%emt 0:07:50]} Bf5 {[%emt 0:04:35]} 28. Bxf8 {[%emt
0:01:19]} Qxf8 {[%emt 0:00:34]} 29. Ng3 {[%emt 0:05:34]} Nc4 {[%emt 0:02:18]}
30. Nxf5 {[%emt 0:01:10]} gxf5 {[%emt 0:00:06]} 31. Nd7 {[%emt 0:00:42]} Qd6 {
[%emt 0:00:07]} 32. Qe8+ {[%emt 0:00:25]} Bf8 {[%emt 0:00:06]} 33. Nxf8 {[%emt
0:00:46]} 1-0

[Event "ETCC Women 2013"]
[Site "Warsaw"]
[Date "2013.11.12"]
[Round "5"]
[White "Schut, Lisa"]
[Black "Bulmaga, Irina"]
[Result "1/2-1/2"]
[ECO "B90"]
[WhiteElo "2333"]
[BlackElo "2399"]
[PlyCount "122"]
[EventDate "2013.??.??"]
[EventCountry "POL"]
[WhiteTeam "Netherlands"]
[BlackTeam "Romania"]
[WhiteTeamCountry "NED"]
[BlackTeamCountry "ROU"]
[TimeControl "40/5400+30:1800+30"]

1. e4 {[%emt 0:00:00]} c5 {[%emt 0:00:00]} 2. Nf3 {[%emt 0:00:00]} d6 {[%emt 0:
00:00]} 3. d4 {[%emt 0:00:00]} cxd4 {[%emt 0:00:00]} 4. Nxd4 {[%emt 0:00:00]}
Nf6 {[%emt 0:00:00]} 5. Nc3 {[%emt 0:00:00]} a6 {[%emt 0:00:06]} 6. h3 {[%emt
0:00:00]} e6 {[%emt 0:00:27]} 7. g4 {[%emt 0:00:29]} d5 {[%emt 0:00:11]} 8.
exd5 {[%emt 0:00:06]} Nxd5 {[%emt 0:00:06]} 9. Nde2 {[%emt 0:00:04]} Bb4 {
[%emt 0:00:20]} 10. Bg2 {[%emt 0:00:06]} O-O {[%emt 0:00:17]} 11. O-O {[%emt 0:
00:06]} Nxc3 {[%emt 0:00:10]} 12. Nxc3 {[%emt 0:00:38]} Qc7 {[%emt 0:00:11]}
13. Qf3 {[%emt 0:00:59]} Bd6 {[%emt 0:00:47]} 14. Be3 {[%emt 0:09:16]} Nc6 {
[%emt 0:12:51]} 15. Ne4 {[%emt 0:04:42]} Be7 {[%emt 0:10:33]} 16. g5 {[%emt 0:
10:34]} Qe5 {[%emt 0:15:02]} 17. Rad1 {[%emt 0:04:39]} Qxb2 {[%emt 0:20:08]}
18. c3 {[%emt 0:02:51]} Qb5 {[%emt 0:00:41]} 19. Nf6+ {[%emt 0:07:56]} Bxf6 {
[%emt 0:13:56]} 20. gxf6 {[%emt 0:00:14]} Qf5 {[%emt 0:01:27]} 21. fxg7 {[%emt
0:05:32]} Re8 {[%emt 0:00:26]} 22. Qg3 {[%emt 0:03:13]} e5 {[%emt 0:03:27]} 23.
Kh2 {[%emt 0:03:23]} e4 {[%emt 0:03:29]} 24. f3 {[%emt 0:02:01]} Qg6 {[%emt 0:
00:36]} 25. fxe4 {[%emt 0:08:05]} Qxg3+ {[%emt 0:01:21]} 26. Kxg3 {[%emt 0:00:
02]} Kxg7 {[%emt 0:00:34]} 27. Bg5 {[%emt 0:13:45]} Re6 {[%emt 0:04:22]} 28.
Kh2 {[%emt 0:03:28]} h6 {[%emt 0:07:03]} 29. Bf4 {[%emt 0:02:20]} Ne5 {[%emt 0:
01:50]} 30. Rd8 {[%emt 0:02:02]} b5 {[%emt 0:01:32]} 31. Rd5 {[%emt 0:05:15]}
f6 {[%emt 0:00:55]} 32. Bxe5 {[%emt 0:03:00]} Rxe5 {[%emt 0:00:50]} 33. Rd8 {
[%emt 0:00:38]} Kg6 {[%emt 0:00:32]} 34. Rf8 {[%emt 0:05:44]} Kg7 {[%emt 0:00:
01]} 35. Rd8 {[%emt 0:02:25]} Kg6 {[%emt 0:00:02]} 36. Rg1 {[%emt 0:00:18]} Bb7
{[%emt 0:02:25]} 37. Rd7 {[%emt 0:00:24]} Bc8 {[%emt 0:00:35]} 38. Rc7 {[%emt
0:00:55]} Rb8 {[%emt 0:00:34]} 39. Bf3+ {[%emt 0:01:37]} Rg5 {[%emt 0:00:15]}
40. Rd1 {[%emt 0:00:00]} h5 {[%emt 0:00:00]} 41. Rd8 {[%emt 0:04:27]} Bg4 {
[%emt 0:04:08]} 42. Rxb8 {[%emt 0:00:13]} Bxf3 {[%emt 0:00:08]} 43. Rg8+ {
[%emt 0:00:15]} Kh6 {[%emt 0:00:02]} 44. Rxg5 {[%emt 0:01:10]} Kxg5 {[%emt 0:
00:12]} 45. Re7 {[%emt 0:00:19]} Kf4 {[%emt 0:10:01]} 46. Re6 {[%emt 0:00:38]}
a5 {[%emt 0:03:44]} 47. Rxf6+ {[%emt 0:02:04]} Kxe4 {[%emt 0:00:16]} 48. Kg3 {
[%emt 0:00:40]} Be2 {[%emt 0:03:20]} 49. Rd6 {[%emt 0:00:35]} Ke3 {[%emt 0:04:
34]} 50. a4 {[%emt 0:15:43]} bxa4 {[%emt 0:03:41]} 51. Rd5 {[%emt 0:00:23]} Bc4
{[%emt 0:01:36]} 52. Rxh5 {[%emt 0:00:29]} Kd3 {[%emt 0:01:46]} 53. Rxa5 {
[%emt 0:00:08]} Bb3 {[%emt 0:00:05]} 54. h4 {[%emt 0:01:51]} Kxc3 {[%emt 0:00:
06]} 55. h5 {[%emt 0:00:13]} Kb4 {[%emt 0:00:57]} 56. h6 {[%emt 0:06:12]} Bc2 {
[%emt 0:00:04]} 57. Ra7 {[%emt 0:00:58]} a3 {[%emt 0:01:05]} 58. Kf3 {[%emt 0:
01:07]} Kb3 {[%emt 0:00:33]} 59. Ke3 {[%emt 0:00:42]} a2 {[%emt 0:00:32]} 60.
Kd2 {[%emt 0:01:06]} Bg6 {[%emt 0:00:35]} 61. Kc1 {[%emt 0:01:09]} Bf5 {[%emt
0:00:19]} 1/2-1/2

[Event "ETCC Women 2013"]
[Site "Warsaw"]
[Date "2013.11.12"]
[Round "5"]
[White "Sebag, Marie"]
[Black "Mammadova, Gulnar"]
[Result "1-0"]
[ECO "C04"]
[WhiteElo "2510"]
[BlackElo "2354"]
[PlyCount "63"]
[EventDate "2013.??.??"]
[EventCountry "POL"]
[WhiteTeam "France"]
[BlackTeam "Azerbaijan"]
[WhiteTeamCountry "FRA"]
[BlackTeamCountry "AZE"]
[TimeControl "40/5400+30:1800+30"]

1. e4 {[%emt 0:00:00]} e6 {[%emt 0:00:00]} 2. d4 {[%emt 0:00:00]} d5 {[%emt 0:
00:00]} 3. Nd2 {[%emt 0:00:00]} Nc6 {[%emt 0:00:00]} 4. Ngf3 {[%emt 0:00:02]}
Nf6 {[%emt 0:00:00]} 5. e5 {[%emt 0:00:24]} Nd7 {[%emt 0:00:02]} 6. Bd3 {[%emt
0:00:20]} Nb4 {[%emt 0:00:12]} 7. Be2 {[%emt 0:00:37]} c5 {[%emt 0:00:06]} 8.
c3 {[%emt 0:00:13]} Nc6 {[%emt 0:00:04]} 9. O-O {[%emt 0:00:32]} cxd4 {[%emt 0:
01:19]} 10. cxd4 {[%emt 0:05:58]} f6 {[%emt 0:00:25]} 11. exf6 {[%emt 0:17:46]}
Nxf6 {[%emt 0:00:04]} 12. Nb3 {[%emt 0:05:11]} Bd6 {[%emt 0:01:23]} 13. Bg5 {
[%emt 0:01:05]} O-O {[%emt 0:00:44]} 14. Bh4 {[%emt 0:00:46]} Qe8 {[%emt 0:05:
39]} 15. Bg3 {[%emt 0:00:50]} Bxg3 {[%emt 0:01:23]} 16. hxg3 {[%emt 0:02:11]}
a5 {[%emt 0:15:28]} 17. Nc5 {[%emt 0:19:31]} e5 {[%emt 0:08:59]} 18. dxe5 {
[%emt 0:02:17]} Nxe5 {[%emt 0:00:16]} 19. Nxe5 {[%emt 0:08:41]} Qxe5 {[%emt 0:
00:14]} 20. Nd3 {[%emt 0:00:24]} Qd4 {[%emt 0:05:32]} 21. b3 {[%emt 0:09:36]}
Bf5 {[%emt 0:16:13]} 22. Nf4 {[%emt 0:00:23]} Qe5 {[%emt 0:01:18]} 23. Re1 {
[%emt 0:02:31]} Rad8 {[%emt 0:01:42]} 24. Bf1 {[%emt 0:04:41]} Be4 {[%emt 0:06:
19]} 25. Qd2 {[%emt 0:02:14]} g5 {[%emt 0:04:05]} 26. Nd3 {[%emt 0:00:22]} Qf5
{[%emt 0:01:36]} 27. f3 {[%emt 0:00:12]} d4 {[%emt 0:06:02]} 28. g4 {[%emt 0:
06:21]} Qg6 {[%emt 0:05:39]} 29. Ne5 {[%emt 0:00:29]} Qh6 {[%emt 0:10:51]} 30.
fxe4 {[%emt 0:00:11]} Rfe8 {[%emt 0:03:00]} 31. Bc4+ {[%emt 0:00:29]} Kf8 {
[%emt 0:00:09]} 32. Nf7 {[%emt 0:01:25]} 1-0